[Event "Titled Tuesday Blitz August 08 Late 2023"]
[White "Vasques, Antonio Pedro Freixial"]
[Black "Ismayil, Malak"]
[WhiteFideId "1908332"]
[BlackFideId "13412604"]
[WhiteElo "2322"]
[BlackElo "2599"]
[Result "1-0"]
[Round "3"]
[TimeControl "180+1"]
[Date "2023.08.08"]
[WhiteClock "0:01:05"]
[BlackClock "0:00:00"]
[Board "151"]

1. e4 {[%clk 0:02:56]}  e5 {[%clk 0:02:55]} 2. Nf3 {[%clk 0:02:52]}  Nc6 {[%clk 0:02:54]} 3. Bc4 {[%clk 0:02:50]}  Bc5 {[%clk 0:02:53]} 4. O-O {[%clk 0:02:50]}  Nf6 {[%clk 0:02:53]} 5. d4 {[%clk 0:02:51]}  Bxd4 {[%clk 0:02:24]} 6. Nxd4 {[%clk 0:02:50]}  Nxd4 {[%clk 0:02:25]} 7. Bg5 {[%clk 0:02:50]}  d6 {[%clk 0:02:22]} 8. f4 {[%clk 0:02:43]}  Be6 {[%clk 0:02:11]} 9. fxe5 {[%clk 0:02:18]}  dxe5 {[%clk 0:01:58]} 10. Bxe6 {[%clk 0:02:03]}  Nxe6 {[%clk 0:01:53]} 11. Qxd8+ {[%clk 0:02:03]}  Rxd8 {[%clk 0:01:52]} 12. Bxf6 {[%clk 0:02:04]}  gxf6 {[%clk 0:01:52]} 13. Nc3 {[%clk 0:02:02]}  c6 {[%clk 0:01:48]} 14. Rxf6 {[%clk 0:02:00]}  Ke7 {[%clk 0:01:48]} 15. Raf1 {[%clk 0:01:59]}  Rhf8 {[%clk 0:01:42]} 16. Rh6 {[%clk 0:01:57]}  Rd2 {[%clk 0:01:40]} 17. Rf2 {[%clk 0:01:56]}  Rfd8 {[%clk 0:01:33]} 18. Nd5+ {[%clk 0:01:41]}  R2xd5 {[%clk 0:00:40]} 19. exd5 {[%clk 0:01:41]}  cxd5 {[%clk 0:00:41]} 20. Rxh7 {[%clk 0:01:41]}  Ng5 {[%clk 0:00:40]} 21. Rg7 {[%clk 0:01:36]}  Ne4 {[%clk 0:00:30]} 22. Rfxf7+ {[%clk 0:01:36]}  Kd6 {[%clk 0:00:29]} 23. Rxb7 {[%clk 0:01:35]}  d4 {[%clk 0:00:25]} 24. Rxa7 {[%clk 0:01:31]}  Rc8 {[%clk 0:00:24]} 25. c3 {[%clk 0:01:27]}  dxc3 {[%clk 0:00:21]} 26. bxc3 {[%clk 0:01:27]}  Rxc3 {[%clk 0:00:20]} 27. h4 {[%clk 0:01:25]}  Rc1+ {[%clk 0:00:11]} 28. Kh2 {[%clk 0:01:25]}  Nf2 {[%clk 0:00:12]} 29. Rg6+ {[%clk 0:01:21]}  Kd5 {[%clk 0:00:12]} 30. h5 {[%clk 0:01:12]}  Rh1+ {[%clk 0:00:08]} 31. Kg3 {[%clk 0:01:12]}  Ne4+ {[%clk 0:00:09]} 32. Kf3 {[%clk 0:01:11]}  Nd2+ {[%clk 0:00:07]} 33. Ke2 {[%clk 0:01:11]}  Nc4 {[%clk 0:00:07]} 34. h6 {[%clk 0:01:09]}  Kd4 {[%clk 0:00:00]} 35. h7 {[%clk 0:01:05]} 1-0


[Site "https://www.chess.com"]

[Event "Titled Tuesday Blitz August 08 Late 2023"]
[White "Harish, Neeraj"]
[Black "Chen, Max"]
[WhiteFideId "30958130"]
[BlackFideId "2622440"]
[WhiteElo "2320"]
[BlackElo "2578"]
[Result "0-1"]
[Round "3"]
[TimeControl "180+1"]
[Date "2023.08.08"]
[WhiteClock "0:00:31"]
[BlackClock "0:00:31"]
[Board "152"]

1. e4 {[%clk 0:03:00]}  c5 {[%clk 0:02:53]} 2. Nf3 {[%clk 0:02:58]}  d6 {[%clk 0:02:52]} 3. d4 {[%clk 0:02:56]}  cxd4 {[%clk 0:02:53]} 4. Nxd4 {[%clk 0:02:56]}  Nf6 {[%clk 0:02:51]} 5. Nc3 {[%clk 0:02:55]}  a6 {[%clk 0:02:51]} 6. h3 {[%clk 0:02:45]}  e5 {[%clk 0:02:45]} 7. Nb3 {[%clk 0:02:42]}  h5 {[%clk 0:02:43]} 8. Bg5 {[%clk 0:02:35]}  Be7 {[%clk 0:02:36]} 9. Qd2 {[%clk 0:02:32]}  Be6 {[%clk 0:02:25]} 10. O-O-O {[%clk 0:02:31]}  Nbd7 {[%clk 0:02:26]} 11. Kb1 {[%clk 0:02:11]}  Rc8 {[%clk 0:02:21]} 12. f4 {[%clk 0:02:05]}  b5 {[%clk 0:02:08]} 13. f5 {[%clk 0:01:56]}  Bc4 {[%clk 0:02:05]} 14. Bd3 {[%clk 0:01:51]}  b4 {[%clk 0:01:46]} 15. Ne2 {[%clk 0:01:48]}  Nxe4 {[%clk 0:01:43]} 16. Bxe4 {[%clk 0:01:42]}  Bxg5 {[%clk 0:01:43]} 17. Qxd6 {[%clk 0:01:14]}  Bxe2 {[%clk 0:01:42]} 18. Bc6 {[%clk 0:00:55]}  Rxc6 {[%clk 0:00:41]} 19. Qxc6 {[%clk 0:00:54]}  Bb5 {[%clk 0:00:38]} 20. Qb7 {[%clk 0:00:35]}  O-O {[%clk 0:00:33]} 21. Nc5 {[%clk 0:00:34]}  Nxc5 {[%clk 0:00:31]} 22. Rxd8 {[%clk 0:00:31]}  Nxb7 {[%clk 0:00:31]} 0-1


[Site "https://www.chess.com"]

[Event "Titled Tuesday Blitz August 08 Late 2023"]
[White "Stachanczyk, Jacek"]
[Black "Berezin, Viktor"]
[WhiteFideId "1116657"]
[BlackFideId "14107872"]
[WhiteElo "2314"]
[BlackElo "2494"]
[Result "1-0"]
[Round "3"]
[TimeControl "180+1"]
[Date "2023.08.08"]
[WhiteClock "0:01:13"]
[BlackClock "0:00:37"]
[Board "155"]

1. e4 {[%clk 0:03:00]}  c6 {[%clk 0:02:53]} 2. d4 {[%clk 0:02:56]}  d5 {[%clk 0:02:52]} 3. Nc3 {[%clk 0:02:57]}  dxe4 {[%clk 0:02:49]} 4. Nxe4 {[%clk 0:02:58]}  Nf6 {[%clk 0:02:50]} 5. Nxf6+ {[%clk 0:02:57]}  exf6 {[%clk 0:02:51]} 6. c3 {[%clk 0:02:58]}  Bd6 {[%clk 0:02:51]} 7. Bd3 {[%clk 0:02:58]}  O-O {[%clk 0:02:51]} 8. Ne2 {[%clk 0:02:58]}  Re8 {[%clk 0:02:51]} 9. O-O {[%clk 0:02:58]}  Qc7 {[%clk 0:02:49]} 10. Ng3 {[%clk 0:02:58]}  Nd7 {[%clk 0:02:48]} 11. Nf5 {[%clk 0:02:53]}  Bxh2+ {[%clk 0:02:44]} 12. Kh1 {[%clk 0:02:52]}  Nf8 {[%clk 0:02:31]} 13. g3 {[%clk 0:02:28]}  Bxf5 {[%clk 0:02:30]} 14. Bxf5 {[%clk 0:02:27]}  Bxg3 {[%clk 0:02:30]} 15. fxg3 {[%clk 0:02:20]}  Qxg3 {[%clk 0:02:31]} 16. Qg4 {[%clk 0:02:18]}  Qxg4 {[%clk 0:02:15]} 17. Bxg4 {[%clk 0:02:19]}  Re4 {[%clk 0:01:51]} 18. Bf3 {[%clk 0:02:17]}  Rh4+ {[%clk 0:01:51]} 19. Kg2 {[%clk 0:02:17]}  Re8 {[%clk 0:01:47]} 20. Bd2 {[%clk 0:02:16]}  g5 {[%clk 0:01:43]} 21. Rae1 {[%clk 0:02:14]}  Rxe1 {[%clk 0:01:38]} 22. Rxe1 {[%clk 0:02:15]}  Ne6 {[%clk 0:01:37]} 23. d5 {[%clk 0:02:13]}  cxd5 {[%clk 0:01:33]} 24. Bxd5 {[%clk 0:02:12]}  Nc5 {[%clk 0:01:33]} 25. Re7 {[%clk 0:02:05]}  Kg7 {[%clk 0:01:12]} 26. Rxf7+ {[%clk 0:01:59]}  Kg6 {[%clk 0:01:12]} 27. Rc7 {[%clk 0:01:57]}  Nd3 {[%clk 0:01:08]} 28. Rxb7 {[%clk 0:01:50]}  Ra4 {[%clk 0:01:08]} 29. Bb3 {[%clk 0:01:44]}  Re4 {[%clk 0:01:03]} 30. Kf3 {[%clk 0:01:39]}  f5 {[%clk 0:00:54]} 31. Rxa7 {[%clk 0:01:25]}  g4+ {[%clk 0:00:52]} 32. Kg3 {[%clk 0:01:20]}  Re2 {[%clk 0:00:51]} 33. Ra6+ {[%clk 0:01:13]}  Kg7 {[%clk 0:00:44]} 34. Bh6+ {[%clk 0:01:13]}  Kh8 {[%clk 0:00:37]} 35. Ra8+ {[%clk 0:01:13]} 1-0


[Site "https://www.chess.com"]

[Event "Titled Tuesday Blitz August 08 Late 2023"]
[White "Weisz, Bryan"]
[Black "Molenda, Marcin"]
[WhiteFideId "30934133"]
[BlackFideId "1173065"]
[WhiteElo "2308"]
[BlackElo "2471"]
[Result "1/2-1/2"]
[Round "3"]
[TimeControl "180+1"]
[Date "2023.08.08"]
[WhiteClock "0:00:07"]
[BlackClock "0:00:27"]
[Board "157"]

1. g3 {[%clk 0:03:00]}  h5 {[%clk 0:02:58]} 2. h3 {[%clk 0:02:53]}  e5 {[%clk 0:02:58]} 3. Bg2 {[%clk 0:02:45]}  d5 {[%clk 0:02:56]} 4. d4 {[%clk 0:02:45]}  e4 {[%clk 0:02:56]} 5. c4 {[%clk 0:02:45]}  c6 {[%clk 0:02:56]} 6. Nc3 {[%clk 0:02:46]}  Nf6 {[%clk 0:02:53]} 7. Bg5 {[%clk 0:02:30]}  Bb4 {[%clk 0:02:50]} 8. Qb3 {[%clk 0:02:17]}  Qa5 {[%clk 0:02:49]} 9. Bxf6 {[%clk 0:02:10]}  gxf6 {[%clk 0:02:48]} 10. cxd5 {[%clk 0:01:50]}  cxd5 {[%clk 0:02:45]} 11. e3 {[%clk 0:01:50]}  Nc6 {[%clk 0:02:41]} 12. Ne2 {[%clk 0:01:50]}  Be6 {[%clk 0:02:39]} 13. O-O {[%clk 0:01:34]}  h4 {[%clk 0:02:37]} 14. g4 {[%clk 0:01:31]}  Bd6 {[%clk 0:02:32]} 15. Qxb7 {[%clk 0:01:24]}  Rc8 {[%clk 0:02:31]} 16. Nb5 {[%clk 0:01:04]}  Bb8 {[%clk 0:02:26]} 17. Rac1 {[%clk 0:00:59]}  Qb6 {[%clk 0:02:15]} 18. Qxb6 {[%clk 0:00:54]}  axb6 {[%clk 0:02:16]} 19. f3 {[%clk 0:00:48]}  exf3 {[%clk 0:01:54]} 20. Bxf3 {[%clk 0:00:48]}  f5 {[%clk 0:01:53]} 21. gxf5 {[%clk 0:00:44]}  Bxf5 {[%clk 0:01:53]} 22. Bxd5 {[%clk 0:00:45]}  Ne7 {[%clk 0:01:47]} 23. Rxc8+ {[%clk 0:00:41]}  Bxc8 {[%clk 0:01:48]} 24. Bxf7+ {[%clk 0:00:39]}  Kd8 {[%clk 0:01:48]} 25. Nf4 {[%clk 0:00:34]}  Nf5 {[%clk 0:01:46]} 26. Ng6 {[%clk 0:00:25]}  Rh7 {[%clk 0:01:45]} 27. Ne5 {[%clk 0:00:12]}  Nxe3 {[%clk 0:01:41]} 28. Rf6 {[%clk 0:00:09]}  Bxh3 {[%clk 0:01:22]} 29. Nc6+ {[%clk 0:00:09]}  Kc8 {[%clk 0:01:22]} 30. Be6+ {[%clk 0:00:07]}  Kb7 {[%clk 0:01:20]} 31. Bxh3 {[%clk 0:00:06]}  Rg7+ {[%clk 0:01:18]} 32. Kf2 {[%clk 0:00:07]}  Nd5 {[%clk 0:01:15]} 33. Nd6+ {[%clk 0:00:06]}  Kxc6 {[%clk 0:01:15]} 34. Nf5+ {[%clk 0:00:06]}  Nxf6 {[%clk 0:01:14]} 35. Nxg7 {[%clk 0:00:07]}  Kd5 {[%clk 0:01:13]} 36. Nf5 {[%clk 0:00:07]}  Bg3+ {[%clk 0:01:01]} 37. Nxg3 {[%clk 0:00:06]}  hxg3+ {[%clk 0:01:01]} 38. Kxg3 {[%clk 0:00:07]}  Kxd4 {[%clk 0:01:01]} 39. Kf3 {[%clk 0:00:08]}  Kd3 {[%clk 0:01:00]} 40. Bf5+ {[%clk 0:00:08]}  Kd2 {[%clk 0:00:59]} 41. Kf4 {[%clk 0:00:07]}  Kc1 {[%clk 0:00:59]} 42. Ke5 {[%clk 0:00:06]}  Kxb2 {[%clk 0:00:57]} 43. Be6 {[%clk 0:00:05]}  Ne8 {[%clk 0:00:52]} 44. Kd4 {[%clk 0:00:03]}  Nc7 {[%clk 0:00:51]} 45. Bb3 {[%clk 0:00:03]}  Ka3 {[%clk 0:00:51]} 46. Ke5 {[%clk 0:00:03]}  Kb4 {[%clk 0:00:52]} 47. Kd6 {[%clk 0:00:04]}  Na6 {[%clk 0:00:50]} 48. Kc6 {[%clk 0:00:05]}  Ka5 {[%clk 0:00:50]} 49. Bc4 {[%clk 0:00:05]}  Nc5 {[%clk 0:00:50]} 50. Bd5 {[%clk 0:00:05]}  Na4 {[%clk 0:00:49]} 51. Kc7 {[%clk 0:00:04]}  Nc3 {[%clk 0:00:48]} 52. Bb3 {[%clk 0:00:04]}  b5 {[%clk 0:00:48]} 53. Bf7 {[%clk 0:00:04]}  b4 {[%clk 0:00:43]} 54. Kc6 {[%clk 0:00:04]}  Ka4 {[%clk 0:00:43]} 55. Kc5 {[%clk 0:00:05]}  Ka3 {[%clk 0:00:44]} 56. Be6 {[%clk 0:00:01]}  Ne4+ {[%clk 0:00:43]} 57. Kd4 {[%clk 0:00:02]}  Nd2 {[%clk 0:00:43]} 58. Kc5 {[%clk 0:00:02]}  Nb1 {[%clk 0:00:43]} 59. Kd4 {[%clk 0:00:02]}  Nc3 {[%clk 0:00:43]} 60. Kc5 {[%clk 0:00:03]}  Na4+ {[%clk 0:00:43]} 61. Kb5 {[%clk 0:00:04]}  Nb2 {[%clk 0:00:42]} 62. Bb3 {[%clk 0:00:04]}  Nd3 {[%clk 0:00:40]} 63. Kc4 {[%clk 0:00:04]}  Nc1 {[%clk 0:00:39]} 64. Bc2 {[%clk 0:00:04]}  Nxa2 {[%clk 0:00:40]} 65. Bb1 {[%clk 0:00:04]}  Nc3 {[%clk 0:00:40]} 66. Bc2 {[%clk 0:00:05]}  Ne2 {[%clk 0:00:39]} 67. Bd1 {[%clk 0:00:05]}  Ng3 {[%clk 0:00:38]} 68. Bc2 {[%clk 0:00:05]}  Nf1 {[%clk 0:00:37]} 69. Bd3 {[%clk 0:00:05]}  Ne3+ {[%clk 0:00:35]} 70. Kd4 {[%clk 0:00:06]}  Nd1 {[%clk 0:00:35]} 71. Bc4 {[%clk 0:00:05]}  Nb2 {[%clk 0:00:34]} 72. Bd5 {[%clk 0:00:05]}  Na4 {[%clk 0:00:34]} 73. Bc4 {[%clk 0:00:05]}  Nb6 {[%clk 0:00:33]} 74. Be6 {[%clk 0:00:06]}  Na4 {[%clk 0:00:34]} 75. Bc4 {[%clk 0:00:07]}  Nc3 {[%clk 0:00:34]} 76. Be6 {[%clk 0:00:07]}  Kb2 {[%clk 0:00:33]} 77. Bc4 {[%clk 0:00:08]}  Na4 {[%clk 0:00:32]} 78. Be6 {[%clk 0:00:07]}  Ka3 {[%clk 0:00:27]} 79. Bc4 {[%clk 0:00:07]} 1/2-1/2


[Site "https://www.chess.com"]

[Event "Titled Tuesday Blitz August 08 Late 2023"]
[White "Spichkin, Alexander"]
[Black "Delorme, Axel"]
[WhiteFideId "4144074"]
[BlackFideId "632023"]
[WhiteElo "2304"]
[BlackElo "2453"]
[Result "0-1"]
[Round "3"]
[TimeControl "180+1"]
[Date "2023.08.08"]
[WhiteClock "0:00:14"]
[BlackClock "0:00:22"]
[Board "160"]

1. f4 {[%clk 0:02:55]}  d5 {[%clk 0:02:59]} 2. Nf3 {[%clk 0:02:54]}  Bg4 {[%clk 0:02:58]} 3. e3 {[%clk 0:02:54]}  Nd7 {[%clk 0:02:58]} 4. d4 {[%clk 0:02:52]}  Ngf6 {[%clk 0:02:55]} 5. h3 {[%clk 0:02:51]}  Bxf3 {[%clk 0:02:51]} 6. Qxf3 {[%clk 0:02:51]}  e6 {[%clk 0:02:49]} 7. Bd3 {[%clk 0:02:44]}  c6 {[%clk 0:02:43]} 8. O-O {[%clk 0:02:42]}  Bd6 {[%clk 0:02:32]} 9. c4 {[%clk 0:02:42]}  O-O {[%clk 0:02:27]} 10. Nc3 {[%clk 0:02:42]}  a6 {[%clk 0:02:24]} 11. Bd2 {[%clk 0:02:40]}  b5 {[%clk 0:02:24]} 12. c5 {[%clk 0:02:37]}  Bc7 {[%clk 0:02:21]} 13. Rad1 {[%clk 0:02:36]}  a5 {[%clk 0:02:13]} 14. f5 {[%clk 0:02:35]}  e5 {[%clk 0:02:12]} 15. e4 {[%clk 0:02:34]}  exd4 {[%clk 0:02:10]} 16. Ne2 {[%clk 0:02:29]}  Ne5 {[%clk 0:01:59]} 17. Qg3 {[%clk 0:02:27]}  dxe4 {[%clk 0:01:55]} 18. Bb1 {[%clk 0:02:25]}  Nf3+ {[%clk 0:01:55]} 19. Rxf3 {[%clk 0:02:26]}  Bxg3 {[%clk 0:01:54]} 20. Rxg3 {[%clk 0:02:26]}  e3 {[%clk 0:01:43]} 21. Be1 {[%clk 0:02:26]}  Re8 {[%clk 0:01:39]} 22. Rxd4 {[%clk 0:02:24]}  Qe7 {[%clk 0:01:38]} 23. Bc3 {[%clk 0:02:23]}  b4 {[%clk 0:01:37]} 24. Be1 {[%clk 0:02:22]}  Qxc5 {[%clk 0:01:37]} 25. Rd1 {[%clk 0:02:18]}  Rad8 {[%clk 0:01:35]} 26. Rc1 {[%clk 0:02:15]}  Qb5 {[%clk 0:01:23]} 27. Nf4 {[%clk 0:02:13]}  e2 {[%clk 0:01:14]} 28. Bd3 {[%clk 0:02:10]}  Qb6+ {[%clk 0:01:13]} 29. Kh2 {[%clk 0:02:06]}  Qd4 {[%clk 0:01:09]} 30. Nxe2 {[%clk 0:02:03]}  Qxb2 {[%clk 0:01:02]} 31. Rc2 {[%clk 0:01:54]}  Qe5 {[%clk 0:00:57]} 32. Kh1 {[%clk 0:01:41]}  c5 {[%clk 0:00:47]} 33. Bb5 {[%clk 0:01:33]}  Re7 {[%clk 0:00:43]} 34. Bf2 {[%clk 0:01:31]}  Rd1+ {[%clk 0:00:39]} 35. Kh2 {[%clk 0:01:30]}  Ne4 {[%clk 0:00:37]} 36. Bxc5 {[%clk 0:01:25]}  Nxg3 {[%clk 0:00:30]} 37. Nxg3 {[%clk 0:01:22]}  Rc7 {[%clk 0:00:27]} 38. Re2 {[%clk 0:01:13]}  Rxc5 {[%clk 0:00:27]} 39. Rxe5 {[%clk 0:01:13]}  Rxe5 {[%clk 0:00:28]} 40. Bc4 {[%clk 0:01:06]}  a4 {[%clk 0:00:28]} 41. Nh5 {[%clk 0:01:05]}  Rd4 {[%clk 0:00:26]} 42. Bb5 {[%clk 0:01:04]}  b3 {[%clk 0:00:26]} 43. axb3 {[%clk 0:01:03]}  axb3 {[%clk 0:00:27]} 44. Be8 {[%clk 0:00:58]}  b2 {[%clk 0:00:26]} 45. f6 {[%clk 0:00:59]}  Rxh5 {[%clk 0:00:25]} 46. fxg7 {[%clk 0:00:59]}  b1=Q {[%clk 0:00:24]} 47. Bxf7+ {[%clk 0:00:19]}  Kxf7 {[%clk 0:00:23]} 48. Kg3 {[%clk 0:00:20]}  Qd3+ {[%clk 0:00:22]} 49. Kh2 {[%clk 0:00:18]}  Rxh3+ {[%clk 0:00:22]} 50. gxh3 {[%clk 0:00:14]}  Qe2+ {[%clk 0:00:22]} 51. Kh1 {[%clk 0:00:14]}  Rd1# {[%clk 0:00:22]} 0-1


[Site "https://www.chess.com"]

[Event "Titled Tuesday Blitz August 08 Late 2023"]
[White "Schmidt, Harald"]
[Black "Prithu Gupta"]
[WhiteFideId "4648358"]
[BlackFideId "46618546"]
[WhiteElo "2289"]
[BlackElo "2449"]
[Result "0-1"]
[Round "3"]
[TimeControl "180+1"]
[Date "2023.08.08"]
[WhiteClock "0:00:00"]
[BlackClock "0:00:08"]
[Board "162"]

1. e4 {[%clk 0:02:59]}  e5 {[%clk 0:02:59]} 2. Nf3 {[%clk 0:02:58]}  Nc6 {[%clk 0:02:59]} 3. Bb5 {[%clk 0:02:57]}  g6 {[%clk 0:02:58]} 4. h4 {[%clk 0:02:55]}  d6 {[%clk 0:02:54]} 5. d3 {[%clk 0:02:52]}  h5 {[%clk 0:02:53]} 6. Nbd2 {[%clk 0:02:51]}  Bd7 {[%clk 0:02:50]} 7. Nc4 {[%clk 0:02:49]}  Qe7 {[%clk 0:02:49]} 8. Ne3 {[%clk 0:02:48]}  Nf6 {[%clk 0:02:41]} 9. Bd2 {[%clk 0:02:45]}  O-O-O {[%clk 0:02:40]} 10. a4 {[%clk 0:02:42]}  Bh6 {[%clk 0:02:39]} 11. a5 {[%clk 0:02:31]}  Ng4 {[%clk 0:02:32]} 12. a6 {[%clk 0:02:24]}  b6 {[%clk 0:02:26]} 13. Nd5 {[%clk 0:02:18]}  Qe8 {[%clk 0:02:23]} 14. Bxh6 {[%clk 0:02:12]}  Rxh6 {[%clk 0:02:24]} 15. Qd2 {[%clk 0:02:11]}  Ne7 {[%clk 0:02:17]} 16. Bxd7+ {[%clk 0:01:54]}  Qxd7 {[%clk 0:02:16]} 17. Nf6 {[%clk 0:01:52]}  Qb5 {[%clk 0:02:00]} 18. Nxg4 {[%clk 0:01:51]}  hxg4 {[%clk 0:02:00]} 19. Qxh6 {[%clk 0:01:48]}  gxf3 {[%clk 0:02:00]} 20. O-O-O {[%clk 0:01:36]}  Qxa6 {[%clk 0:01:58]} 21. Kb1 {[%clk 0:01:35]}  fxg2 {[%clk 0:01:56]} 22. Rhg1 {[%clk 0:01:34]}  d5 {[%clk 0:01:46]} 23. Qg5 {[%clk 0:01:29]}  Nc6 {[%clk 0:01:45]} 24. c3 {[%clk 0:01:14]}  dxe4 {[%clk 0:01:43]} 25. Qxg2 {[%clk 0:01:06]}  Rxd3 {[%clk 0:00:58]} 26. Qxe4 {[%clk 0:01:05]}  Rxd1+ {[%clk 0:00:56]} 27. Rxd1 {[%clk 0:01:04]}  Qb5 {[%clk 0:00:57]} 28. f4 {[%clk 0:00:54]}  exf4 {[%clk 0:00:54]} 29. Qxf4 {[%clk 0:00:54]}  Ne5 {[%clk 0:00:44]} 30. Qe4 {[%clk 0:00:53]}  Nc6 {[%clk 0:00:35]} 31. Qe8+ {[%clk 0:00:23]}  Kb7 {[%clk 0:00:34]} 32. Qxf7 {[%clk 0:00:24]}  Qh5 {[%clk 0:00:19]} 33. Rd7 {[%clk 0:00:19]}  Qe5 {[%clk 0:00:15]} 34. Qd5 {[%clk 0:00:15]}  Qe1+ {[%clk 0:00:14]} 35. Ka2 {[%clk 0:00:14]}  Qxh4 {[%clk 0:00:14]} 36. Rg7 {[%clk 0:00:09]}  Qa4+ {[%clk 0:00:12]} 37. Kb1 {[%clk 0:00:08]}  Qf4 {[%clk 0:00:07]} 38. Rxg6 {[%clk 0:00:06]}  Qf1+ {[%clk 0:00:07]} 39. Kc2 {[%clk 0:00:05]}  Qf2+ {[%clk 0:00:05]} 40. Kb3 {[%clk 0:00:05]}  Qc5 {[%clk 0:00:04]} 41. Qxc5 {[%clk 0:00:04]}  bxc5 {[%clk 0:00:05]} 42. Kc4 {[%clk 0:00:04]}  Ne5+ {[%clk 0:00:05]} 43. Kxc5 {[%clk 0:00:03]}  Nxg6 {[%clk 0:00:06]} 44. b4 {[%clk 0:00:03]}  c6 {[%clk 0:00:06]} 45. c4 {[%clk 0:00:02]}  Kc7 {[%clk 0:00:06]} 46. b5 {[%clk 0:00:02]}  cxb5 {[%clk 0:00:07]} 47. Kxb5 {[%clk 0:00:02]}  Ne7 {[%clk 0:00:07]} 48. Ka6 {[%clk 0:00:01]}  Nc6 {[%clk 0:00:07]} 49. c5 {[%clk 0:00:02]}  Kb8 {[%clk 0:00:06]} 50. Kb5 {[%clk 0:00:01]}  Kb7 {[%clk 0:00:07]} 51. Ka4 {[%clk 0:00:00]}  a5 {[%clk 0:00:08]} 0-1


[Site "https://www.chess.com"]

[Event "Titled Tuesday Blitz August 08 Late 2023"]
[White "Guerrero Vargas, Andres Jesus"]
[Black "Fajdetic, Hrvoje"]
[WhiteFideId "3902048"]
[BlackFideId "14501945"]
[WhiteElo "2434"]
[BlackElo "2288"]
[Result "1-0"]
[Round "3"]
[TimeControl "180+1"]
[Date "2023.08.08"]
[WhiteClock "0:01:20"]
[BlackClock "0:01:14"]
[Board "164"]

1. e4 {[%clk 0:03:00]}  c5 {[%clk 0:02:57]} 2. d4 {[%clk 0:03:00]}  cxd4 {[%clk 0:02:57]} 3. c3 {[%clk 0:03:00]}  d3 {[%clk 0:02:58]} 4. c4 {[%clk 0:03:00]}  Nc6 {[%clk 0:02:58]} 5. Nc3 {[%clk 0:03:01]}  g6 {[%clk 0:02:58]} 6. Bxd3 {[%clk 0:03:01]}  Bg7 {[%clk 0:02:59]} 7. Nge2 {[%clk 0:03:02]}  d6 {[%clk 0:02:59]} 8. h3 {[%clk 0:03:02]}  Nf6 {[%clk 0:02:58]} 9. O-O {[%clk 0:03:03]}  O-O {[%clk 0:02:58]} 10. Be3 {[%clk 0:03:04]}  Be6 {[%clk 0:02:57]} 11. Rc1 {[%clk 0:03:04]}  Rc8 {[%clk 0:02:57]} 12. b3 {[%clk 0:03:04]}  Qa5 {[%clk 0:02:55]} 13. a3 {[%clk 0:02:51]}  a6 {[%clk 0:02:43]} 14. b4 {[%clk 0:02:32]}  Qh5 {[%clk 0:02:33]} 15. Qd2 {[%clk 0:02:13]}  g5 {[%clk 0:01:40]} 16. Ng3 {[%clk 0:01:59]}  Qg6 {[%clk 0:01:24]} 17. e5 {[%clk 0:01:56]}  Nxe5 {[%clk 0:01:21]} 18. Bxg6 {[%clk 0:01:55]}  Nxc4 {[%clk 0:01:22]} 19. Bxh7+ {[%clk 0:01:33]}  Kxh7 {[%clk 0:01:22]} 20. Qd3+ {[%clk 0:01:32]}  Kg8 {[%clk 0:01:22]} 21. Bxg5 {[%clk 0:01:25]}  Ne5 {[%clk 0:01:14]} 22. Qb1 {[%clk 0:01:20]} 1-0


[Site "https://www.chess.com"]

[Event "Titled Tuesday Blitz August 08 Late 2023"]
[White "Steindl, Johannes"]
[Black "WindWhistler11"]
[WhiteFideId "1643266"]
[WhiteElo "2286"]
[BlackElo "2425"]
[Result "0-1"]
[Round "3"]
[TimeControl "180+1"]
[Date "2023.08.08"]
[WhiteClock "0:00:14"]
[BlackClock "0:00:59"]
[Board "165"]

1. e4 {[%clk 0:03:00]}  e6 {[%clk 0:03:00]} 2. d4 {[%clk 0:02:58]}  d5 {[%clk 0:03:00]} 3. Nd2 {[%clk 0:02:57]}  Nc6 {[%clk 0:03:00]} 4. Ngf3 {[%clk 0:02:52]}  Nf6 {[%clk 0:03:00]} 5. e5 {[%clk 0:02:51]}  Nd7 {[%clk 0:03:00]} 6. Be2 {[%clk 0:02:43]}  f6 {[%clk 0:03:00]} 7. exf6 {[%clk 0:02:43]}  Qxf6 {[%clk 0:02:59]} 8. Nf1 {[%clk 0:02:37]}  Bd6 {[%clk 0:02:56]} 9. Ne3 {[%clk 0:02:29]}  O-O {[%clk 0:02:43]} 10. O-O {[%clk 0:02:15]}  h6 {[%clk 0:02:34]} 11. c4 {[%clk 0:02:07]}  Qf7 {[%clk 0:02:08]} 12. Qb3 {[%clk 0:01:47]}  Ne7 {[%clk 0:01:43]} 13. Ng4 {[%clk 0:01:12]}  c5 {[%clk 0:01:37]} 14. dxc5 {[%clk 0:00:50]}  Nxc5 {[%clk 0:01:36]} 15. Qc2 {[%clk 0:00:47]}  Qh5 {[%clk 0:01:30]} 16. h3 {[%clk 0:00:40]}  e5 {[%clk 0:01:25]} 17. Nfxe5 {[%clk 0:00:32]}  Bxg4 {[%clk 0:01:11]} 18. Bxg4 {[%clk 0:00:30]}  Qxe5 {[%clk 0:01:10]} 19. f4 {[%clk 0:00:27]}  Qd4+ {[%clk 0:01:05]} 20. Kh1 {[%clk 0:00:27]}  Bxf4 {[%clk 0:01:02]} 21. cxd5 {[%clk 0:00:26]}  Nd3 {[%clk 0:01:01]} 22. Bd2 {[%clk 0:00:23]}  Nf2+ {[%clk 0:01:00]} 23. Rxf2 {[%clk 0:00:22]}  Qxf2 {[%clk 0:01:00]} 24. Be6+ {[%clk 0:00:14]}  Kh8 {[%clk 0:00:59]} 0-1


[Site "https://www.chess.com"]

[Event "Titled Tuesday Blitz August 08 Late 2023"]
[White "Ladan, Nicholas"]
[Black "Garcia-Castany Musellas, Gal.la"]
[WhiteFideId "30918855"]
[BlackFideId "2241803"]
[WhiteElo "2423"]
[BlackElo "2281"]
[Result "1-0"]
[Round "3"]
[TimeControl "180+1"]
[Date "2023.08.08"]
[WhiteClock "0:01:20"]
[BlackClock "0:00:00"]
[Board "166"]

1. d4 {[%clk 0:03:00]}  Nf6 {[%clk 0:02:59]} 2. e3 {[%clk 0:03:01]}  e6 {[%clk 0:02:58]} 3. Nf3 {[%clk 0:03:01]}  Be7 {[%clk 0:02:58]} 4. Be2 {[%clk 0:03:02]}  O-O {[%clk 0:02:58]} 5. O-O {[%clk 0:03:03]}  b6 {[%clk 0:02:56]} 6. b3 {[%clk 0:03:03]}  Bb7 {[%clk 0:02:56]} 7. Bb2 {[%clk 0:03:04]}  c5 {[%clk 0:02:50]} 8. a3 {[%clk 0:03:04]}  d6 {[%clk 0:02:49]} 9. Nbd2 {[%clk 0:03:04]}  Nbd7 {[%clk 0:02:47]} 10. c4 {[%clk 0:03:04]}  cxd4 {[%clk 0:02:42]} 11. Nxd4 {[%clk 0:03:02]}  d5 {[%clk 0:02:39]} 12. Bf3 {[%clk 0:03:01]}  Rc8 {[%clk 0:02:32]} 13. Rc1 {[%clk 0:03:01]}  a6 {[%clk 0:02:24]} 14. Qe2 {[%clk 0:02:55]}  Ne5 {[%clk 0:02:11]} 15. Rfd1 {[%clk 0:02:46]}  Nxf3+ {[%clk 0:02:09]} 16. N2xf3 {[%clk 0:02:47]}  Ba8 {[%clk 0:02:04]} 17. cxd5 {[%clk 0:02:43]}  Nxd5 {[%clk 0:02:02]} 18. Qxa6 {[%clk 0:02:38]}  Bf6 {[%clk 0:01:46]} 19. e4 {[%clk 0:02:29]}  Nf4 {[%clk 0:01:44]} 20. e5 {[%clk 0:02:20]}  Rxc1 {[%clk 0:01:39]} 21. Bxc1 {[%clk 0:02:13]}  Bxf3 {[%clk 0:01:29]} 22. gxf3 {[%clk 0:02:13]}  Bxe5 {[%clk 0:01:19]} 23. Bxf4 {[%clk 0:02:07]}  Bxf4 {[%clk 0:01:17]} 24. Qe2 {[%clk 0:02:04]}  Qh4 {[%clk 0:01:11]} 25. Kf1 {[%clk 0:01:58]}  Qxh2 {[%clk 0:01:09]} 26. Ke1 {[%clk 0:01:58]}  Rd8 {[%clk 0:00:43]} 27. Qe4 {[%clk 0:01:38]}  e5 {[%clk 0:00:40]} 28. Ke2 {[%clk 0:01:20]}  exd4 {[%clk 0:00:00]} 29. Rxd4 {[%clk 0:01:20]} 1-0


[Site "https://www.chess.com"]